fUSD/lending_fUSD_20250205
["ID","MTS","AMOUNT","RATE_DAILY","PERIOD"]
[351733050,1738770655432,-500.0,0.00010164,2]
[351733051,1738770655442,-1000.0,0.00010175,2]
[351733052,1738770655451,-1109.86,0.00010205,2]
[351733053,1738770655461,-601.45,0.00010205,2]
[351733054,1738770655471,-651.5,0.00010205,2]
[351733055,1738770655479,-2690.41,0.00010205,2]
[351733056,1738770655487,-500.0,0.00010205,2]
[351733057,1738770655495,-1927.8,0.00010205,2]
[351733058,1738770655505,-1684.83,0.00010205,2]
[351733059,1738770655515,-1968.47,0.00010205,2]
[351733060,1738770655524,-1487.65,0.00010205,2]
[351733061,1738770655534,-1200.92,0.00010205,2]
[351733062,1738770655543,-2590.26,0.00010205,2]
[351733063,1738770655552,-3157.9,0.00010205,2]
[351733064,1738770655562,-1135.45,0.00010205,2]
[351733065,1738770655571,-553.43,0.00010205,2]
[351733066,1738770655580,-2633.64,0.00010205,2]
[351733067,1738770655590,-1119.78,0.00010205,2]
[351733068,1738770655599,-1006.46,0.00010205,2]
[351733069,1738770655611,-500.0,0.00010205,2]
[351733070,1738770655620,-1737.61,0.00010205,2]
[351733071,1738770655630,-2022.8,0.00010205,2]
[351733072,1738770655639,-668.09,0.00010205,2]
[351733073,1738770655648,-587.82,0.00010205,2]
[351733074,1738770655658,-500.0,0.00010205,2]
[351733075,1738770655667,-748.36744206,0.00010233,2]
[351733076,1738770655676,-445.0,0.0001025,2]
[351733077,1738770655686,-500.0,0.0001027,2]
[351733078,1738770655695,-414.19,0.0001027,2]
[351733079,1738770655704,-500.0,0.0001027,2]
[351733080,1738770655713,-500.0,0.0001027,2]
[351733081,1738770655723,-404.07,0.0001027,2]
[351733082,1738770655732,-634.62,0.0001027,2]
[351733083,1738770655741,-500.0,0.0001027,2]
[351733084,1738770655751,-169.77,0.0001027,2]
[351733085,1738770655760,-513.39,0.0001027,2]
[351733086,1738770655770,-523.387043,0.00010271,2]
[351733087,1738770655779,-515.889473,0.00010271,2]
[351733088,1738770655788,-1126.69,0.00010271,2]
[351733089,1738770655797,-1018.07,0.00010271,2]
[351733090,1738770655806,-1111.66,0.00010271,2]
[351733091,1738770655815,-908.3,0.00010271,2]
[351733092,1738770655825,-1020.86,0.00010271,2]
[351733093,1738770655834,-2757.85,0.00010271,2]
[351733094,1738770655844,-462.6,0.00010271,2]
[351733095,1738770655853,-500.0,0.00010271,2]
[351733096,1738770655863,-778.98,0.00010271,2]
[351733097,1738770655872,-1433.93,0.00010271,2]
[351733098,1738770655882,-1530.38,0.00010271,2]
[351733099,1738770655892,-589.89,0.00010271,2]
[351733100,1738770655902,-2425.07,0.00010271,2]
[351733101,1738770655912,-1082.03,0.00010271,2]
[351733102,1738770655921,-1820.02,0.00010271,2]
[351733103,1738770655932,-921.5,0.00010271,2]
[351733104,1738770655940,-2070.11,0.00010271,2]
[351733105,1738770655950,-500.0,0.00010271,2]
[351733106,1738770655959,-500.0,0.00010271,2]
[351733107,1738770655969,-1845.69,0.00010271,2]
[351733108,1738770655978,-1760.24,0.00010271,2]
[351733109,1738770655987,-761.1,0.00010271,2]
[351733110,1738770655996,-500.0,0.00010271,2]
[351733111,1738770656011,-2654.05,0.00010271,2]
[351733112,1738770656020,-1672.03,0.00010271,2]
[351733113,1738770656030,-2982.03,0.00010271,2]
[351733114,1738770656039,-1673.58,0.00010271,2]
[351733115,1738770656050,-2307.76,0.00010271,2]
[351733116,1738770656060,-1855.54,0.00010271,2]
[351733117,1738770656070,-2958.38,0.00010271,2]
[351733118,1738770656080,-2623.09,0.00010271,2]
[351733119,1738770656089,-1036.56,0.00010271,2]
[351733120,1738770656098,-2084.26,0.00010271,2]
[351733121,1738770656109,-1013.94,0.00010271,2]
[351733122,1738770656119,-1161.41,0.00010271,2]
[351733123,1738770656129,-500.0,0.00010271,2]
[351733124,1738770656138,-1354.82,0.00010271,2]
[351733125,1738770656147,-3316.09,0.00010271,2]
[351733126,1738770656156,-500.0,0.00010271,2]
[351733127,1738770656166,-2075.83,0.00010271,2]
[351733128,1738770656175,-500.0,0.00010271,2]
[351733129,1738770656184,-2436.56,0.00010271,2]
[351733130,1738770656194,-500.0,0.00010271,2]
[351733131,1738770656203,-343.94,0.00010271,2]
[351733132,1738770656212,-1343.72,0.00010271,2]
[351733133,1738770656222,-1245.1,0.00010271,2]
[351733134,1738770656232,-500.0,0.00010272,2]
[351733135,1738770656241,-362.63209638,0.00010272,2]
[351733136,1738770656251,-500.0,0.00010272,2]
[351733137,1738770656261,-241.62,0.00010272,2]
[351733138,1738770656269,-596.28,0.00010272,2]
[351733139,1738770656278,-500.0,0.00010272,2]
[351733140,1738770656288,-500.0,0.00010272,2]
[351733141,1738770656297,-1332.61,0.00010272,2]
[351733142,1738770656306,-500.0,0.00010272,2]
[351733143,1738770656316,-500.0,0.00010272,2]
[351733144,1738770656325,-1095.47,0.00010272,2]
[351733145,1738770656334,-678.16,0.00010272,2]
[351733146,1738770656343,-563.16,0.00010272,2]
[351733147,1738770656353,-749.13,0.00010272,2]
[351733148,1738770656364,-607.4,0.00010272,2]
[351733149,1738770656373,-900.55,0.00010272,2]
[351733150,1738770656382,-1434.78,0.00010272,2]
[351733151,1738770656391,-389.10756495,0.00010272,2]
[351733152,1738770656400,-591.38,0.00010272,2]
[351733153,1738770656409,-500.0,0.00010272,2]
[351733154,1738770656419,-500.0,0.00010272,2]
[351733155,1738770656428,-576.8,0.00010272,2]
[351733156,1738770656438,-706.22,0.00010272,2]
[351733157,1738770656447,-450.0,0.00010272,2]
[351733158,1738770656456,-500.0,0.00010272,2]
[351733159,1738770656466,-684.39,0.00010272,2]
[351733160,1738770656475,-1039.07,0.00010272,2]
[351733161,1738770656484,-1018.32,0.00010272,2]
[351733162,1738770656492,-897.3,0.00010272,2]
[351733163,1738770656500,-673.69,0.00010272,2]
[351733164,1738770656509,-470.85498663,0.00010272,2]
[351733165,1738770656517,-1041.58,0.00010272,2]
[351733166,1738770656527,-500.0,0.00010272,2]
[351733167,1738770656537,-500.0,0.00010272,2]
[351733168,1738770656547,-534.42,0.00010272,2]
[351733169,1738770656557,-740.11,0.00010272,2]
[351733170,1738770656566,-1557.89,0.00010272,2]
[351733171,1738770656576,-731.82,0.00010272,2]
[351733172,1738770656585,-380.08,0.00010272,2]
[351733173,1738770656595,-721.17,0.00010272,2]
[351733174,1738770656604,-500.0,0.00010272,2]
[351733175,1738770656614,-335.33290967,0.00010272,2]
[351733176,1738770656624,-519.49,0.00010272,2]
[351733177,1738770656634,-829.1,0.00010272,2]
[351733178,1738770656643,-858.89,0.00010272,2]
[351733179,1738770656653,-500.0,0.00010272,2]
[351733180,1738770656662,-921.22,0.00010272,2]
[351733181,1738770656671,-365.16,0.00010272,2]
[351733182,1738770656681,-500.0,0.00010272,2]
[351733183,1738770656690,-500.0,0.00010272,2]
[351733184,1738770656699,-500.0,0.00010272,2]
[351733185,1738770656709,-946.31,0.00010272,2]
[351733186,1738770656718,-500.0,0.00010272,2]
[351733187,1738770656728,-500.0,0.00010272,2]
[351733188,1738770656737,-500.0,0.00010272,2]
[351733189,1738770656747,-500.0,0.00010272,2]
[351733190,1738770656757,-802.39,0.00010272,2]
[351733191,1738770656767,-500.0,0.00010272,2]
[351733192,1738770656776,-1382.83,0.00010272,2]
[351733193,1738770656785,-500.0,0.00010272,2]
[351733194,1738770656795,-500.0,0.00010272,2]
[351733195,1738770656804,-1400.23,0.00010272,2]
[351733196,1738770656813,-745.53,0.00010272,2]
[351733197,1738770656823,-707.14,0.00010272,2]
[351733198,1738770656832,-1118.15,0.00010272,2]
[351733199,1738770656842,-826.65,0.00010272,2]
[351733200,1738770656851,-721.92,0.00010272,2]
[351733201,1738770656863,-1111.61,0.00010272,2]
[351733202,1738770656872,-801.84,0.00010272,2]
[351733203,1738770656882,-500.0,0.00010272,2]
[351733204,1738770656891,-500.0,0.00010272,2]
[351733205,1738770656901,-969.53,0.00010272,2]
[351733206,1738770656910,-500.0,0.00010272,2]
[351733207,1738770656919,-479.4,0.00010272,2]
[351733208,1738770656929,-500.0,0.00010272,2]
[351733209,1738770656939,-500.0,0.00010272,2]
[351733210,1738770656948,-902.57,0.00010272,2]
[351733211,1738770656957,-500.0,0.00010272,2]
[351733212,1738770656967,-500.0,0.00010272,2]
[351733213,1738770656976,-1168.87,0.00010272,2]
[351733214,1738770656986,-500.0,0.00010272,2]
[351733215,1738770656995,-1387.9,0.00010272,2]
[351733216,1738770657006,-500.0,0.00010272,2]
[351733217,1738770657020,-500.0,0.00010272,2]
[351733218,1738770657030,-173.3,0.00010272,2]
[351733219,1738770657039,-275.33,0.00010272,2]
[351733220,1738770657049,-1060.41,0.00010273,2]
[351733221,1738770657061,-758.92,0.00010273,2]
[351733222,1738770657070,-757.71,0.00010273,2]
[351733223,1738770657079,-500.0,0.00010273,2]
[351733224,1738770657089,-1429.12,0.00010273,2]
[351733225,1738770657099,-1425.5,0.00010273,2]
[351733226,1738770657110,-1244.98,0.00010273,2]
[351733227,1738770657120,-1283.65,0.00010273,2]
[351733228,1738770657129,-3135.32,0.00010273,2]
[351733229,1738770657139,-500.0,0.00010273,2]
[351733230,1738770657150,-3428.69,0.00010273,2]
[351733231,1738770657159,-500.0,0.00010273,2]
[351733232,1738770657169,-1299.19,0.00010273,2]
[351733233,1738770657178,-1145.57,0.00010273,2]
[351733234,1738770657188,-1194.71,0.00010273,2]
[351733235,1738770657197,-739.14,0.00010273,2]
[351733236,1738770657207,-2567.97,0.00010273,2]
[351733237,1738770657216,-500.0,0.00010273,2]
[351733238,1738770657226,-853.27,0.00010273,2]
[351733239,1738770657235,-1570.67,0.00010273,2]
[351733240,1738770657245,-2103.34,0.00010273,2]
[351733241,1738770657255,-1000.0,0.00010273,2]
[351733242,1738770657265,-520.86,0.00010273,2]
[351733243,1738770657274,-500.0,0.00010273,2]
[351733244,1738770657283,-1711.72,0.00010273,2]
[351733245,1738770657293,-500.0,0.00010273,2]
[351733246,1738770657304,-1109.86,0.00010342,2]
[351733247,1738770657313,-601.45,0.00010342,2]
[351733248,1738770657323,-651.5,0.00010342,2]
[351733249,1738770657334,-2690.41,0.00010342,2]
[351733250,1738770657343,-500.0,0.00010342,2]
[351733251,1738770657352,-1927.8,0.00010342,2]
[351733252,1738770657364,-1684.83,0.00010342,2]
[351733253,1738770657374,-1968.47,0.00010342,2]
[351733254,1738770657383,-1487.65,0.00010342,2]
[351733255,1738770657393,-1200.92,0.00010342,2]
[351733256,1738770657403,-2590.26,0.00010342,2]
[351733257,1738770657412,-3157.9,0.00010342,2]
[351733258,1738770657422,-1135.45,0.00010342,2]
[351733259,1738770657432,-553.43,0.00010342,2]
[351733260,1738770657441,-2633.64,0.00010342,2]
[351733261,1738770657451,-1119.78,0.00010342,2]
[351733262,1738770657460,-1006.46,0.00010342,2]
[351733263,1738770657471,-500.0,0.00010342,2]
[351733264,1738770657480,-1737.61,0.00010342,2]
[351733265,1738770657490,-2022.8,0.00010342,2]
[351733266,1738770657499,-668.09,0.00010342,2]
[351733267,1738770657508,-587.82,0.00010342,2]
[351733268,1738770657518,-500.0,0.00010342,2]
[351733269,1738770657528,-151.0,0.00010343,2]
[351733270,1738770657537,-185.99701,0.00010343,2]
[351733271,1738770657547,-185.99701,0.00010343,2]
[351733272,1738770657557,-153.702068,0.0001035,2]
[351733273,1738770657566,-438.52,0.00010356,2]
[351733274,1738770657575,-445.0,0.0001038,2]
[351733275,1738770657585,-656.49389047,0.00010398,2]
[351733276,1738770657594,-1632.94,0.00010399,2]
[351733277,1738770657605,-322.39662851,0.00010407,2]
[351733278,1738770657614,-500.0,0.00010407,2]
[351733279,1738770657623,-500.0,0.00010407,2]
[351733280,1738770657633,-500.0,0.00010407,2]
[351733281,1738770657642,-523.387043,0.00010408,2]
[351733282,1738770657652,-515.889473,0.00010408,2]
[351733283,1738770657661,-1126.69,0.00010408,2]
[351733284,1738770657670,-1018.07,0.00010408,2]
[351733285,1738770657679,-1111.66,0.00010408,2]
[351733286,1738770657688,-908.3,0.00010408,2]
[351733287,1738770657698,-1020.86,0.00010408,2]
[351733288,1738770657707,-2757.85,0.00010408,2]
[351733289,1738770657716,-500.0,0.00010408,2]
[351733290,1738770657725,-778.98,0.00010408,2]
[351733291,1738770657734,-1433.93,0.00010408,2]
[351733292,1738770657743,-1530.38,0.00010408,2]
[351733293,1738770657752,-589.89,0.00010408,2]
[351733294,1738770657761,-2425.07,0.00010408,2]
[351733295,1738770657770,-1082.03,0.00010408,2]
[351733296,1738770657779,-1820.02,0.00010408,2]
[351733297,1738770657788,-921.5,0.00010408,2]
[351733298,1738770657797,-2070.11,0.00010408,2]
[351733299,1738770657806,-500.0,0.00010408,2]
[351733300,1738770657815,-500.0,0.00010408,2]
[351733301,1738770657825,-1845.69,0.00010408,2]
[351733302,1738770657834,-1760.24,0.00010408,2]
[351733303,1738770657843,-761.1,0.00010408,2]
[351733304,1738770657852,-2654.05,0.00010408,2]
[351733305,1738770657864,-1672.03,0.00010408,2]
[351733306,1738770657874,-2982.03,0.00010408,2]
[351733307,1738770657883,-1673.58,0.00010408,2]
[351733308,1738770657893,-2307.76,0.00010408,2]
[351733309,1738770657903,-1855.54,0.00010408,2]
[351733310,1738770657912,-2958.38,0.00010408,2]
[351733311,1738770657922,-2623.09,0.00010408,2]
[351733312,1738770657932,-1036.56,0.00010408,2]
[351733313,1738770657942,-2084.26,0.00010408,2]
[351733314,1738770657952,-1013.94,0.00010408,2]
[351733315,1738770657962,-1161.41,0.00010408,2]
[351733316,1738770657972,-500.0,0.00010408,2]
[351733317,1738770657982,-1354.82,0.00010408,2]
[351733318,1738770657991,-3316.09,0.00010408,2]
[351733319,1738770658001,-500.0,0.00010408,2]
[351733320,1738770658014,-2075.83,0.00010408,2]
[351733321,1738770658023,-500.0,0.00010408,2]
[351733322,1738770658033,-2436.56,0.00010408,2]
[351733323,1738770658043,-579.39,0.00010408,2]
[351733324,1738770658055,-1343.72,0.00010408,2]
[351733325,1738770658065,-1245.1,0.00010408,2]
[351733326,1738770658075,-500.0,0.00010409,2]
[351733327,1738770658085,-500.0,0.00010409,2]
[351733328,1738770658096,-596.28,0.00010409,2]
[351733329,1738770658106,-500.0,0.00010409,2]
[351733330,1738770658116,-500.0,0.00010409,2]
[351733331,1738770658126,-1332.61,0.00010409,2]
[351733332,1738770658135,-500.0,0.00010409,2]
[351733333,1738770658144,-500.0,0.00010409,2]
[351733334,1738770658153,-1095.47,0.00010409,2]
[351733335,1738770658163,-678.16,0.00010409,2]
[351733336,1738770658172,-563.16,0.00010409,2]
[351733337,1738770658329,-749.13,0.00010409,2]
[351733338,1738770658348,-607.4,0.00010409,2]
[351733339,1738770658360,-900.55,0.00010409,2]
[351733340,1738770658370,-1434.78,0.00010409,2]
[351733341,1738770658380,-500.0,0.00010409,2]
[351733342,1738770658390,-487.24,0.00010409,2]
[351733343,1738770658400,-576.8,0.00010409,2]
[351733344,1738770658409,-706.22,0.00010409,2]
[351733345,1738770658418,-500.0,0.00010409,2]
[351733346,1738770658428,-684.39,0.00010409,2]
[351733347,1738770658437,-1039.07,0.00010409,2]
[351733348,1738770658447,-1018.32,0.00010409,2]
[351733349,1738770658456,-897.3,0.00010409,2]
[351733350,1738770658466,-673.69,0.00010409,2]
[351733351,1738770658475,-1041.58,0.00010409,2]
[351733352,1738770658484,-500.0,0.00010409,2]
[351733353,1738770658494,-500.0,0.00010409,2]
[351733354,1738770658503,-534.42,0.00010409,2]
[351733355,1738770658512,-740.11,0.00010409,2]
[351733356,1738770658522,-1557.89,0.00010409,2]
[351733357,1738770658531,-731.82,0.00010409,2]
[351733358,1738770658540,-721.17,0.00010409,2]
[351733359,1738770658550,-500.0,0.00010409,2]
[351733360,1738770658559,-519.49,0.00010409,2]
[351733361,1738770658569,-829.1,0.00010409,2]
[351733362,1738770658579,-858.89,0.00010409,2]
[351733363,1738770658589,-500.0,0.00010409,2]
[351733364,1738770658598,-921.22,0.00010409,2]
[351733365,1738770658609,-500.0,0.00010409,2]
[351733366,1738770658619,-500.0,0.00010409,2]
[351733367,1738770658629,-248.02,0.00010409,2]
[351733368,1738770658639,-946.31,0.00010409,2]
[351733369,1738770658648,-500.0,0.00010409,2]
[351733370,1738770658658,-500.0,0.00010409,2]
[351733371,1738770658668,-500.0,0.00010409,2]
[351733372,1738770658677,-500.0,0.00010409,2]
[351733373,1738770658687,-802.39,0.00010409,2]
[351733374,1738770658696,-500.0,0.00010409,2]
[351733375,1738770658706,-1382.83,0.00010409,2]
[351733376,1738770658715,-500.0,0.00010409,2]
[351733377,1738770658724,-504.66323576,0.00010409,2]
[351733378,1738770658734,-1400.23,0.00010409,2]
[351733379,1738770658744,-745.53,0.00010409,2]
[351733380,1738770658754,-707.14,0.00010409,2]
[351733381,1738770658763,-1118.15,0.00010409,2]
[351733382,1738770658773,-826.65,0.00010409,2]
[351733383,1738770658783,-721.92,0.00010409,2]
[351733384,1738770658793,-1111.61,0.00010409,2]
[351733385,1738770658802,-801.84,0.00010409,2]
[351733386,1738770658811,-500.0,0.00010409,2]
[351733387,1738770658821,-500.0,0.00010409,2]
[351733388,1738770658830,-969.53,0.00010409,2]
[351733389,1738770658840,-500.0,0.00010409,2]
[351733390,1738770658850,-500.0,0.00010409,2]
[351733391,1738770658860,-500.0,0.00010409,2]
[351733392,1738770658870,-902.57,0.00010409,2]
[351733393,1738770658879,-500.0,0.00010409,2]
[351733394,1738770658889,-500.0,0.00010409,2]
[351733395,1738770658898,-1168.87,0.00010409,2]
[351733396,1738770658907,-500.0,0.00010409,2]
[351733397,1738770658917,-1387.9,0.00010409,2]
[351733398,1738770658927,-280.58,0.00010409,2]
[351733399,1738770658936,-500.0,0.00010409,2]
[351733400,1738770658946,-1060.41,0.0001041,2]
[351733401,1738770658955,-758.92,0.0001041,2]
[351733402,1738770658965,-757.71,0.0001041,2]
[351733403,1738770658975,-500.0,0.0001041,2]
[351733404,1738770658985,-1429.12,0.0001041,2]
[351733405,1738770658995,-1425.5,0.0001041,2]
[351733406,1738770659007,-1244.98,0.0001041,2]
[351733407,1738770659019,-1283.65,0.0001041,2]
[351733408,1738770659029,-3135.32,0.0001041,2]
[351733409,1738770659039,-500.0,0.0001041,2]
[351733410,1738770659050,-3428.69,0.0001041,2]
[351733411,1738770659060,-500.0,0.0001041,2]
[351733412,1738770659069,-1299.19,0.0001041,2]
[351733413,1738770659079,-1145.57,0.0001041,2]
[351733414,1738770659089,-1194.71,0.0001041,2]
[351733415,1738770659101,-739.14,0.0001041,2]
[351733416,1738770659114,-2567.97,0.0001041,2]
[351733417,1738770659123,-500.0,0.0001041,2]
[351733418,1738770659134,-853.27,0.0001041,2]
[351733419,1738770659143,-1570.67,0.0001041,2]
[351733420,1738770659153,-2103.34,0.0001041,2]
[351733421,1738770659163,-1000.0,0.0001041,2]
[351733422,1738770659173,-520.86,0.0001041,2]
[351733423,1738770659183,-500.0,0.0001041,2]
[351733424,1738770659193,-1711.72,0.0001041,2]
[351733425,1738770659203,-500.0,0.0001041,2]
[351733426,1738770659212,-174.608383,0.00010418,2]
[351733427,1738770659223,-1109.86,0.00010479,2]
[351733428,1738770659233,-601.45,0.00010479,2]
[351733429,1738770659243,-651.5,0.00010479,2]
[351733430,1738770659253,-2690.41,0.00010479,2]
[351733431,1738770659263,-500.0,0.00010479,2]
[351733432,1738770659273,-1927.8,0.00010479,2]
[351733433,1738770659283,-1684.83,0.00010479,2]
[351733434,1738770659293,-1968.47,0.00010479,2]
[351733435,1738770659303,-1487.65,0.00010479,2]
[351733436,1738770659313,-1200.92,0.00010479,2]
[351733437,1738770659323,-2590.26,0.00010479,2]
[351733438,1738770659333,-3157.9,0.00010479,2]
[351733439,1738770659342,-1135.45,0.00010479,2]
[351733440,1738770659352,-553.43,0.00010479,2]
[351733441,1738770659363,-2633.64,0.00010479,2]
[351733442,1738770659372,-1119.78,0.00010479,2]
[351733443,1738770659382,-1006.46,0.00010479,2]
[351733444,1738770659391,-500.0,0.00010479,2]
[351733445,1738770659401,-1737.61,0.00010479,2]
[351733446,1738770659411,-2022.8,0.00010479,2]
[351733447,1738770659420,-668.09,0.00010479,2]
[351733448,1738770659430,-587.82,0.00010479,2]
[351733449,1738770659439,-500.0,0.00010479,2]
[351733450,1738770659449,-152.0,0.00010481,3]
[351733451,1738770659458,-85000.0,0.000105,2]
[351733452,1738770659469,-151.0,0.000105,2]
[351733453,1738770659479,-185.99701,0.000105,2]
[351733454,1738770659488,-185.99701,0.000105,2]
[351733455,1738770659497,-321.36,0.00010513,2]
[351733456,1738770659507,-445.0,0.0001052,2]
[351733457,1738770659516,-1000.0,0.00010521,2]
[351733458,1738770659526,-300.0,0.00010524,2]
[351733459,1738770659536,-587.0,0.00010524,2]
[351733460,1738770659545,-168.36,0.00010544,2]
[351733461,1738770659555,-150.07,0.00010544,2]
[351733462,1738770659564,-500.0,0.00010544,2]
[351733463,1738770659573,-523.387043,0.00010545,2]
[351733464,1738770659583,-515.889473,0.00010545,2]
[351733465,1738770659592,-167.03166,0.00010545,2]
[351733466,1738770659602,-160.58762,0.00010545,2]
[351733467,1738770659613,-170.791792,0.00010545,2]
[351733468,1738770659623,-1126.69,0.00010545,2]
[351733469,1738770659633,-1018.07,0.00010545,2]
[351733470,1738770659643,-1111.66,0.00010545,2]
[351733471,1738770659654,-908.3,0.00010545,2]
[351733472,1738770659664,-1020.86,0.00010545,2]
[351733473,1738770659673,-2757.85,0.00010545,2]
[351733474,1738770659682,-500.0,0.00010545,2]
[351733475,1738770659692,-778.98,0.00010545,2]
[351733476,1738770659701,-1433.93,0.00010545,2]
[351733477,1738770659711,-1530.38,0.00010545,2]
[351733478,1738770659720,-589.89,0.00010545,2]
[351733479,1738770659730,-2425.07,0.00010545,2]
[351733480,1738770659739,-1082.03,0.00010545,2]
[351733481,1738770659748,-1820.02,0.00010545,2]
[351733482,1738770659758,-921.5,0.00010545,2]
[351733483,1738770659768,-2070.11,0.00010545,2]
[351733484,1738770659777,-500.0,0.00010545,2]
[351733485,1738770659786,-500.0,0.00010545,2]
[351733486,1738770659796,-1845.69,0.00010545,2]
[351733487,1738770659806,-1760.24,0.00010545,2]
[351733488,1738770659815,-761.1,0.00010545,2]
[351733489,1738770659825,-2654.05,0.00010545,2]
[351733490,1738770659835,-1672.03,0.00010545,2]
[351733491,1738770659844,-2982.03,0.00010545,2]
[351733492,1738770659854,-1673.58,0.00010545,2]
[351733493,1738770659865,-2307.76,0.00010545,2]
[351733494,1738770659875,-1855.54,0.00010545,2]
[351733495,1738770659884,-2958.38,0.00010545,2]
[351733496,1738770659894,-2623.09,0.00010545,2]
[351733497,1738770659903,-1036.56,0.00010545,2]
[351733498,1738770659912,-2084.26,0.00010545,2]
[351733499,1738770659922,-1013.94,0.00010545,2]
[351733500,1738770659931,-1161.41,0.00010545,2]
[351733501,1738770659941,-500.0,0.00010545,2]
[351733502,1738770659951,-1354.82,0.00010545,2]
[351733503,1738770659961,-3316.09,0.00010545,2]
[351733504,1738770659971,-500.0,0.00010545,2]
[351733505,1738770659980,-2075.83,0.00010545,2]
[351733506,1738770659990,-500.0,0.00010545,2]
[351733507,1738770659999,-2436.56,0.00010545,2]
[351733508,1738770660014,-1343.72,0.00010545,2]
[351733509,1738770660024,-1245.1,0.00010545,2]
[351733510,1738770660034,-500.0,0.00010546,2]
[351733511,1738770660044,-500.0,0.00010546,2]
[351733512,1738770660055,-596.28,0.00010546,2]
[351733513,1738770660065,-500.0,0.00010546,2]
[351733514,1738770660075,-500.0,0.00010546,2]
[351733515,1738770660086,-1332.61,0.00010546,2]
[351733516,1738770660095,-438.81,0.00010546,2]
[351733517,1738770660104,-500.0,0.00010546,2]
[351733518,1738770660115,-1095.47,0.00010546,2]
[351733519,1738770660125,-678.16,0.00010546,2]
[351733520,1738770660135,-563.16,0.00010546,2]
[351733521,1738770660145,-749.13,0.00010546,2]
[351733522,1738770660155,-607.4,0.00010546,2]
[351733523,1738770660164,-900.55,0.00010546,2]
[351733524,1738770660174,-1434.78,0.00010546,2]
[351733525,1738770660184,-576.8,0.00010546,2]
[351733526,1738770660195,-706.22,0.00010546,2]
[351733527,1738770660205,-500.0,0.00010546,2]
[351733528,1738770660216,-684.39,0.00010546,2]
[351733529,1738770660226,-1039.07,0.00010546,2]
[351733530,1738770660236,-1018.32,0.00010546,2]
[351733531,1738770660247,-897.3,0.00010546,2]
[351733532,1738770660257,-673.69,0.00010546,2]
[351733533,1738770660267,-1041.58,0.00010546,2]
[351733534,1738770660278,-500.0,0.00010546,2]
[351733535,1738770660288,-500.0,0.00010546,2]
[351733536,1738770660298,-534.42,0.00010546,2]
[351733537,1738770660308,-740.11,0.00010546,2]
[351733538,1738770660317,-1557.89,0.00010546,2]
[351733539,1738770660327,-731.82,0.00010546,2]
[351733540,1738770660337,-721.17,0.00010546,2]
[351733541,1738770660346,-500.0,0.00010546,2]
[351733542,1738770660356,-519.49,0.00010546,2]
[351733543,1738770660369,-829.1,0.00010546,2]
[351733544,1738770660378,-858.89,0.00010546,2]
[351733545,1738770660387,-500.0,0.00010546,2]
[351733546,1738770660397,-921.22,0.00010546,2]
[351733547,1738770660407,-500.0,0.00010546,2]
[351733548,1738770660417,-649.36,0.00010546,2]
[351733549,1738770660426,-946.31,0.00010546,2]